[Event "EYCC Open-U10 2019"]
[Site "Bratislava"]
[Date "2019.08.07"]
[Round "6.21"]
[White "Tabuenca Mendataurigoitia, Dani"]
[Black "Tolmacevs, Artjoms"]
[Result "1-0"]
[ECO "B23"]
[WhiteElo "1765"]
[BlackElo "1583"]
[Annotator "NA"]
[PlyCount "129"]
[EventDate "2019.08.02"]
[EventType "swiss"]
[EventCountry "SVK"]
[SourceTitle "playchess.com"]
[Source "ChessBase"]
[SourceQuality "1"]
[TimeControl "40/5400+30:1800+30"]

1. e4 {[%emt 0:00:00]} c5 {[%emt 0:00:00]} 2. Nc3 {[%emt 0:00:17]} d6 {[%emt 0:00:00]} 3. d4 {[%emt 0:00:44]} cxd4 {[%emt 0:00:26]} 4. Qxd4 {[%emt 0:01:05]} a6 {[%emt 0:02:14]} 5. b3 {[%emt 0:02:42]} e5 {[%emt 0:00:13]} 6. Qd2 {[%emt 0:01:24]} Nf6 {[%emt 0:00:17]} 7. Bb2 {[%emt 0:02:00]} Be7 {[%emt 0:00:46]} 8. O-O-O {[%emt 0:01:07]} b5 {[%emt 0:01:49]} 9. f3 {[%emt 0:05:20]} Bb7 {[%emt 0:00:24]} 10. Kb1 {[%emt 0:01:19]} Nbd7 {[%emt 0:01:38]} 11. g4 {[%emt 0:01:53]} Nb6 {[%emt 0:04:01]} 12. Nh3 {[%emt 0:04:29]} Nfd7 {[%emt 0:10:42]} 13. Rg1 {[%emt 0:09:37]} b4 {[%emt 0:02:27]} 14. Ne2 {[%emt 0:01:02]} a5 {[%emt 0:02:07]} 15. Ng3 {[%emt 0:01:32]} d5 {[%emt 0:08:01]} 16. Nf5 {[%emt 0:04:32]} O-O {[%emt 0:00:57]} 17. f4 {[%emt 0:07:51]} f6 {[%emt 0:07:10]} 18. exd5 {[%emt 0:09:19]} Bxd5 {[%emt 0:01:37]} 19. Bg2 {[%emt 0:04:36]} Bxg2 {[%emt 0:00:34]} 20. Qxg2 {[%emt 0:00:25]} Bc5 {[%emt 0:04:08]} 21. Rge1 {[%emt 0:01:35]} Qc7 {[%emt 0:03:26]} 22. fxe5 {[%emt 0:02:16]} Nxe5 {[%emt 0:00:27]} 23. Nf4 {[%emt 0:02:11]} Rfe8 {[%emt 0:09:48]} 24. Nh5 {[%emt 0:01:39]} Bf8 {[%emt 0:00:36]} 25. g5 {[%emt 0:03:01]} Qc6 {[%emt 0:01:26]} 26. Qxc6 {[%emt 0:01:59]} Nxc6 {[%emt 0:00:07]} 27. gxf6 {[%emt 0:02:26]} g6 {[%emt 0:00:15]} 28. Rg1 {[%emt 0:00:20]} Kf7 {[%emt 0:00:35]} 29. Nd6+ {[%emt 0:01:11]} Bxd6 {[%emt 0:00:59]} 30. Rxd6 {[%emt 0:00:05]} Re6 {[%emt 0:00:34]} 31. Rxe6 {[%emt 0:02:20]} Kxe6 {[%emt 0:00:06]} 32. Ng7+ {[%emt 0:02:19]} Kf7 {[%emt 0:00:15]} 33. Re1 {[%emt 0:00:55]} Nd7 {[%emt 0:05:03]} 34. Ne6 {[%emt 0:05:52]} h6 35. Nd4 {[%emt 0:01:54]} Nce5 {[%emt 0:10:50]} 36. Nf3 {[%emt 0:01:36]} Nc6 {[%emt 0:01:35]} 37. Rd1 {[%emt 0:01:27]} Rd8 {[%emt 0:00:35]} 38. Rd6 {[%emt 0:00:23]} Ndb8 {[%emt 0:06:01]} 39. Ne5+ {[%emt 0:01:20]} Kg8 {[%emt 0:00:50]} 40. f7+ {[%emt 0:00:00]} Kf8 {[%emt 0:00:00]} 41. Bc1 {[%emt 0:04:01]} g5 {[%emt 0:00:59]} 42. Rxh6 {[%emt 0:00:55]} Nxe5 {[%emt 0:05:15]} 43. Rh8+ {[%emt 0:00:12]} Kxf7 {[%emt 0:00:08]} 44. Rxd8 {[%emt 0:00:10]} Nbc6 {[%emt 0:00:06]} 45. Rd6 {[%emt 0:02:08]} g4 {[%emt 0:00:36]} 46. Bf4 {[%emt 0:00:56]} Ke7 {[%emt 0:00:42]} 47. Rh6 {[%emt 0:01:19]} Kd7 {[%emt 0:00:22]} 48. h3 {[%emt 0:00:54]} gxh3 {[%emt 0:00:12]} 49. Bxe5 {[%emt 0:00:29]} Nxe5 {[%emt 0:00:05]} 50. Rxh3 {[%emt 0:00:04]} Kd6 {[%emt 0:00:19]} 51. c3 {[%emt 0:01:59]} Nc6 {[%emt 0:00:27]} 52. Rh6+ {[%emt 0:00:24]} Kc5 {[%emt 0:00:03]} 53. c4 {[%emt 0:02:08]} a4 {[%emt 0:00:34]} 54. Rxc6+ {[%emt 0:00:18]} Kxc6 {[%emt 0:00:15]} 55. bxa4 {[%emt 0:00:03]} Kc5 {[%emt 0:00:15]} 56. a5 {[%emt 0:00:16]} Kc6 {[%emt 0:00:11]} 57. Kb2 {[%emt 0:00:06]} Kc5 {[%emt 0:00:08]} 58. Kb3 {[%emt 0:00:05]} Kc6 {[%emt 0:00:07]} 59. Kxb4 {[%emt 0:00:05]} Kb7 {[%emt 0:00:05]} 60. Kb5 {[%emt 0:00:07]} Ka7 {[%emt 0:00:06]} 61. c5 {[%emt 0:01:03]} Kb7 {[%emt 0:00:05]} 62. a6+ {[%emt 0:00:04]} Ka7 {[%emt 0:00:08]} 63. c6 {[%emt 0:00:04]} Ka8 {[%emt 0:00:16]} 64. Kb6 {[%emt 0:00:07]} Kb8 {[%emt 0:00:08]} 65. c7+ {[%emt 0:00:05]} 1-0

[Event "EYCC Open-U10 2019"]
[Site "Bratislava"]
[Date "2019.08.07"]
[Round "6.22"]
[White "Agasarov, Benik"]
[Black "Dimitrov, Martin"]
[Result "1-0"]
[ECO "A06"]
[WhiteElo "1697"]
[BlackElo "1473"]
[Annotator "NA"]
[PlyCount "101"]
[EventDate "2019.08.02"]
[EventType "swiss"]
[EventCountry "SVK"]
[SourceTitle "playchess.com"]
[Source "ChessBase"]
[SourceQuality "1"]
[TimeControl "40/5400+30:1800+30"]

1. Nf3 {[%emt 0:00:00]} d5 {[%emt 0:00:00]} 2. g3 {[%emt 0:00:00]} c6 {[%emt 0:00:00]} 3. Bg2 {[%emt 0:00:00]} Bf5 {[%emt 0:00:08]} 4. O-O {[%emt 0:00:25]} Nf6 {[%emt 0:00:20]} 5. d4 {[%emt 0:04:49]} e6 {[%emt 0:00:36]} 6. Nbd2 {[%emt 0:00:07]} Nbd7 {[%emt 0:01:53]} 7. c4 {[%emt 0:00:29]} h6 {[%emt 0:01:16]} 8. b3 {[%emt 0:00:17]} Bd6 {[%emt 0:01:40]} 9. Bb2 {[%emt 0:00:08]} O-O {[%emt 0:00:51]} 10. Re1 {[%emt 0:00:53]} a5 {[%emt 0:01:52]} 11. a3 {[%emt 0:00:16]} Qe7 {[%emt 0:01:46]} 12. Ne5 {[%emt 0:09:55]} Bc7 {[%emt 0:01:48]} 13. Qc1 {[%emt 0:12:21]} Rac8 {[%emt 0:03:55]} 14. Nxd7 {[%emt 0:10:15]} Nxd7 {[%emt 0:02:59]} 15. e4 {[%emt 0:00:43]} dxe4 {[%emt 0:01:23]} 16. Bxe4 {[%emt 0:00:04]} Bxe4 {[%emt 0:01:33]} 17. Nxe4 {[%emt 0:00:05]} Rfd8 {[%emt 0:02:26]} 18. Qc3 {[%emt 0:00:34]} Qf8 {[%emt 0:01:07]} 19. Rad1 {[%emt 0:00:27]} e5 {[%emt 0:03:39]} 20. d5 {[%emt 0:02:17]} cxd5 {[%emt 0:01:50]} 21. Rxd5 {[%emt 0:00:35]} Nb6 {[%emt 0:01:26]} 22. Rb5 {[%emt 0:03:12]} a4 {[%emt 0:02:41]} 23. b4 {[%emt 0:02:52]} Rd4 {[%emt 0:05:40]} 24. c5 {[%emt 0:00:52]} Nc4 {[%emt 0:04:30]} 25. Rxb7 {[%emt 0:09:39]} f5 {[%emt 0:06:03]} 26. Nd6 {[%emt 0:01:09]} Bxd6 {[%emt 0:01:12]} 27. cxd6 {[%emt 0:00:05]} Nxb2 {[%emt 0:01:05]} 28. Qxb2 {[%emt 0:00:22]} Qxd6 {[%emt 0:02:32]} 29. Rb5 {[%emt 0:03:55]} Re8 {[%emt 0:03:48]} 30. Qa2+ {[%emt 0:00:19]} Kf8 {[%emt 0:01:12]} 31. Qc2 {[%emt 0:00:46]} Qd7 {[%emt 0:04:06]} 32. Rbxe5 {[%emt 0:01:18]} Rxe5 {[%emt 0:01:51]} 33. Rxe5 {[%emt 0:00:12]} Rd1+ {[%emt 0:00:21]} 34. Kg2 {[%emt 0:00:04]} Rd5 {[%emt 0:00:19]} 35. Rxd5 {[%emt 0:01:06]} Qxd5+ {[%emt 0:00:19]} 36. Kg1 {[%emt 0:00:05]} Ke7 {[%emt 0:01:16]} 37. Qxa4 {[%emt 0:00:25]} Qe5 {[%emt 0:01:12]} 38. Qa7+ {[%emt 0:00:11]} Kf8 {[%emt 0:00:28]} 39. Qe3 {[%emt 0:00:36]} Qf6 {[%emt 0:02:36]} 40. b5 {[%emt 0:00:00]} Qd6 {[%emt 0:00:00]} 41. b6 {[%emt 0:00:16]} Qc6 {[%emt 0:01:37]} 42. Qb3 {[%emt 0:00:42]} Qc1+ {[%emt 0:01:05]} 43. Kg2 {[%emt 0:00:01]} Qc6+ {[%emt 0:00:22]} 44. f3 {[%emt 0:00:03]} Qb7 {[%emt 0:00:41]} 45. a4 {[%emt 0:00:08]} Ke7 {[%emt 0:00:46]} 46. a5 {[%emt 0:00:04]} Kf6 {[%emt 0:01:29]} 47. Qc3+ {[%emt 0:00:06]} Ke6 {[%emt 0:00:40]} 48. Qc4+ {[%emt 0:00:08]} Kf6 {[%emt 0:00:51]} 49. Qb5 {[%emt 0:00:13]} g5 {[%emt 0:01:29]} 50. a6 {[%emt 0:00:03]} Qf7 {[%emt 0:00:52]} 51. Qb2+ 1-0

[Event "EYCC Open-U10 2019"]
[Site "Bratislava"]
[Date "2019.08.07"]
[Round "6.23"]
[White "Torosyan, Bagrat"]
[Black "Tykheev, Aldar"]
[Result "0-1"]
[ECO "D00"]
[WhiteElo "1586"]
[BlackElo "1434"]
[Annotator "NA"]
[PlyCount "144"]
[EventDate "2019.08.02"]
[EventType "swiss"]
[EventCountry "SVK"]
[SourceTitle "playchess.com"]
[Source "ChessBase"]
[SourceQuality "1"]
[TimeControl "40/5400+30:1800+30"]

1. d4 {[%emt 0:00:00]} d5 {[%emt 0:00:00]} 2. Bf4 {[%emt 0:00:00]} Nf6 {[%emt 0:00:03]} 3. e3 {[%emt 0:00:00]} c5 {[%emt 0:00:11]} 4. c3 {[%emt 0:00:00]} e6 {[%emt 0:00:07]} 5. Nf3 {[%emt 0:00:00]} Nc6 {[%emt 0:00:09]} 6. Nbd2 {[%emt 0:00:06]} Bd6 {[%emt 0:00:33]} 7. Bg3 {[%emt 0:00:06]} Bxg3 {[%emt 0:00:44]} 8. hxg3 {[%emt 0:00:09]} Qd6 {[%emt 0:00:12]} 9. Bb5 {[%emt 0:03:24]} Nd7 {[%emt 0:01:41]} 10. Ng5 {[%emt 0:01:18]} h6 {[%emt 0:02:50]} 11. f4 {[%emt 0:00:32]} cxd4 {[%emt 0:26:48]} 12. exd4 {[%emt 0:00:21]} a6 {[%emt 0:17:26]} 13. Bd3 {[%emt 0:00:25]} Nf6 {[%emt 0:03:20]} 14. Qe2 {[%emt 0:04:55]} Bd7 {[%emt 0:01:09]} 15. O-O-O {[%emt 0:00:11]} Qe7 {[%emt 0:01:51]} 16. Rde1 {[%emt 0:00:41]} O-O-O {[%emt 0:00:42]} 17. Ngf3 {[%emt 0:01:06]} Kb8 {[%emt 0:04:19]} 18. Nb3 {[%emt 0:01:27]} Bc8 {[%emt 0:00:32]} 19. Nfd2 {[%emt 0:00:45]} Nd7 {[%emt 0:01:36]} 20. Kb1 {[%emt 0:02:22]} Ka7 {[%emt 0:05:37]} 21. Qf2 {[%emt 0:05:18]} Kb8 {[%emt 0:07:58]} 22. Nf3 {[%emt 0:01:23]} Qf6 {[%emt 0:02:59]} 23. Ne5 {[%emt 0:02:29]} Ndxe5 {[%emt 0:02:41]} 24. dxe5 Qe7 25. Nd4 {[%emt 0:01:45]} Qc5 {[%emt 0:02:07]} 26. Bc2 {[%emt 0:06:24]} Nxd4 {[%emt 0:00:19]} 27. cxd4 {[%emt 0:00:13]} Qe7 {[%emt 0:00:41]} 28. g4 {[%emt 0:02:22]} b6 {[%emt 0:07:47]} 29. f5 {[%emt 0:01:19]} Ka7 {[%emt 0:00:12]} 30. Re3 {[%emt 0:02:01]} a5 {[%emt 0:00:44]} 31. Rf3 {[%emt 0:01:18]} exf5 {[%emt 0:03:08]} 32. gxf5 {[%emt 0:02:16]} Rde8 {[%emt 0:02:04]} 33. f6 {[%emt 0:00:46]} gxf6 {[%emt 0:00:27]} 34. Rxf6 {[%emt 0:00:06]} Be6 {[%emt 0:00:13]} 35. Rhxh6 {[%emt 0:03:00]} Reg8 {[%emt 0:01:17]} 36. g4 {[%emt 0:03:59]} Rxh6 {[%emt 0:00:27]} 37. Rxh6 {[%emt 0:00:08]} Rxg4 {[%emt 0:00:15]} 38. Rf6 {[%emt 0:00:50]} Rg7 {[%emt 0:02:50]} 39. Bf5 {[%emt 0:00:43]} Bxf5+ {[%emt 0:01:24]} 40. Rxf5 {[%emt 0:00:14]} Rh7 {[%emt 0:00:27]} 41. Rf6 {[%emt 0:01:15]} Rh1+ {[%emt 0:00:16]} 42. Kc2 {[%emt 0:00:17]} Qc7+ {[%emt 0:00:15]} 43. Kd2 {[%emt 0:14:06]} Qc1+ {[%emt 0:00:39]} 44. Ke2 {[%emt 0:00:34]} Qd1+ {[%emt 0:01:13]} 45. Ke3 {[%emt 0:00:17]} Re1+ {[%emt 0:00:15]} 46. Kf4 {[%emt 0:00:16]} Rf1 {[%emt 0:00:22]} 47. Qxf1 {[%emt 0:01:01]} Qxf1+ {[%emt 0:00:10]} 48. Ke3 {[%emt 0:01:52]} Qg1+ {[%emt 0:01:49]} 49. Kd3 {[%emt 0:00:25]} Qg3+ {[%emt 0:00:38]} 50. Kc2 {[%emt 0:00:18]} Ka6 {[%emt 0:01:11]} 51. a3 {[%emt 0:00:57]} Qe3 {[%emt 0:01:39]} 52. Rxf7 {[%emt 0:01:20]} Qxd4 {[%emt 0:00:24]} 53. Kb1 {[%emt 0:03:38]} Qxe5 {[%emt 0:00:07]} 54. Rf1 {[%emt 0:01:15]} Qe4+ {[%emt 0:00:11]} 55. Ka1 {[%emt 0:00:12]} d4 {[%emt 0:00:07]} 56. b4 {[%emt 0:00:16]} axb4 {[%emt 0:00:22]} 57. axb4 Qd3 {[%emt 0:00:17]} 58. b5+ {[%emt 0:00:42]} Qxb5 {[%emt 0:00:12]} 59. Rf2 {[%emt 0:00:31]} d3 {[%emt 0:00:32]} 60. Ra2+ {[%emt 0:00:44]} Kb7 {[%emt 0:00:05]} 61. Rb2 {[%emt 0:00:21]} Qa4+ {[%emt 0:01:32]} 62. Kb1 {[%emt 0:00:50]} Qd1+ {[%emt 0:00:36]} 63. Ka2 {[%emt 0:00:11]} d2 {[%emt 0:00:11]} 64. Rb1 {[%emt 0:00:21]} Qxb1+ {[%emt 0:00:29]} 65. Kxb1 {[%emt 0:00:07]} d1=Q+ {[%emt 0:00:14]} 66. Kb2 {[%emt 0:01:11]} Qd3 {[%emt 0:00:10]} 67. Ka1 {[%emt 0:00:13]} Qd2 {[%emt 0:00:06]} 68. Kb1 {[%emt 0:00:05]} Ka6 {[%emt 0:00:11]} 69. Ka1 {[%emt 0:00:08]} Ka5 {[%emt 0:00:06]} 70. Kb1 {[%emt 0:00:05]} Ka4 {[%emt 0:00:12]} 71. Ka1 {[%emt 0:00:06]} Ka3 {[%emt 0:00:18]} 72. Kb1 {[%emt 0:00:03]} Qd1# {[%emt 0:00:06]} 0-1

[Event "EYCC Open-U10 2019"]
[Site "Bratislava"]
[Date "2019.08.07"]
[Round "6.24"]
[White "Panda, Barnabas"]
[Black "Blumenthal, Michael"]
[Result "1-0"]
[ECO "A52"]
[WhiteElo "1625"]
[BlackElo "1311"]
[Annotator "NA"]
[PlyCount "57"]
[EventDate "2019.08.02"]
[EventType "swiss"]
[EventCountry "SVK"]
[SourceTitle "playchess.com"]
[Source "ChessBase"]
[SourceQuality "1"]
[TimeControl "40/5400+30:1800+30"]

1. d4 {[%emt 0:00:02]} Nf6 {[%emt 0:00:00]} 2. c4 {[%emt 0:00:16]} e5 {[%emt 0:00:07]} 3. dxe5 {[%emt 0:00:40]} Ng4 {[%emt 0:00:11]} 4. Nf3 {[%emt 0:00:59]} Nc6 {[%emt 0:00:13]} 5. e3 {[%emt 0:02:20]} Ngxe5 {[%emt 0:00:54]} 6. Be2 {[%emt 0:01:17]} Bc5 {[%emt 0:02:09]} 7. O-O {[%emt 0:02:16]} d6 {[%emt 0:01:06]} 8. Nc3 {[%emt 0:01:07]} O-O {[%emt 0:01:43]} 9. b3 {[%emt 0:04:54]} Be6 {[%emt 0:02:50]} 10. Bb2 {[%emt 0:03:13]} f6 {[%emt 0:07:34]} 11. Nd4 {[%emt 0:05:34]} Bf7 {[%emt 0:02:41]} 12. Nxc6 {[%emt 0:17:53]} Nxc6 {[%emt 0:06:24]} 13. Nd5 {[%emt 0:08:43]} a5 {[%emt 0:10:29]} 14. a4 {[%emt 0:07:39]} Nb4 {[%emt 0:04:05]} 15. Nxb4 {[%emt 0:05:11]} Bxb4 {[%emt 0:00:42]} 16. Qc2 {[%emt 0:03:37]} Bg6 {[%emt 0:02:57]} 17. Bd3 {[%emt 0:00:59]} Bxd3 {[%emt 0:00:11]} 18. Qxd3 {[%emt 0:00:35]} Kh8 {[%emt 0:03:57]} 19. Rfd1 {[%emt 0:02:57]} Qe7 {[%emt 0:01:31]} 20. Rac1 {[%emt 0:02:15]} Rad8 {[%emt 0:02:34]} 21. Qf5 {[%emt 0:03:08]} Qd7 {[%emt 0:08:24]} 22. Qf3 {[%emt 0:03:21]} Qc6 {[%emt 0:04:36]} 23. Qg3 {[%emt 0:02:55]} Rfe8 {[%emt 0:03:54]} 24. Rd4 {[%emt 0:05:21]} Bc5 {[%emt 0:02:35]} 25. Rg4 {[%emt 0:00:31]} Re7 {[%emt 0:00:14]} 26. Qh4 {[%emt 0:01:37]} Rf7 {[%emt 0:03:54]} 27. Qh5 {[%emt 0:01:43]} Rdf8 {[%emt 0:00:33]} 28. Rh4 {[%emt 0:01:14]} g5 {[%emt 0:02:23]} 29. Bxf6+ {[%emt 0:01:03]} 1-0

[Event "EYCC Open-U10 2019"]
[Site "Bratislava"]
[Date "2019.08.07"]
[Round "6.25"]
[White "Sava, Robert-Gabriel"]
[Black "Sommer, Justus"]
[Result "0-1"]
[ECO "C88"]
[WhiteElo "1292"]
[BlackElo "1671"]
[Annotator "NA"]
[PlyCount "86"]
[EventDate "2019.08.02"]
[EventType "swiss"]
[EventCountry "SVK"]
[SourceTitle "playchess.com"]
[Source "ChessBase"]
[SourceQuality "1"]
[TimeControl "40/5400+30:1800+30"]

1. e4 {[%emt 0:00:00]} e5 {[%emt 0:00:00]} 2. Nf3 {[%emt 0:00:04]} Nc6 {[%emt 0:00:36]} 3. Bb5 {[%emt 0:00:37]} a6 {[%emt 0:00:26]} 4. Ba4 {[%emt 0:00:32]} Nf6 {[%emt 0:00:38]} 5. O-O {[%emt 0:00:47]} Be7 {[%emt 0:00:40]} 6. Re1 {[%emt 0:00:51]} b5 {[%emt 0:00:32]} 7. Bb3 {[%emt 0:00:10]} d6 {[%emt 0:00:11]} 8. a4 {[%emt 0:04:05]} b4 {[%emt 0:01:38]} 9. h3 {[%emt 0:01:29]} O-O {[%emt 0:01:02]} 10. c3 {[%emt 0:01:59]} Bb7 {[%emt 0:03:01]} 11. d4 {[%emt 0:02:39]} a5 {[%emt 0:02:47]} 12. Nbd2 {[%emt 0:01:32]} Nd7 {[%emt 0:02:00]} 13. Nf1 {[%emt 0:02:01]} exd4 {[%emt 0:01:32]} 14. cxd4 {[%emt 0:02:08]} Bf6 {[%emt 0:00:25]} 15. Ng3 {[%emt 0:00:22]} g6 {[%emt 0:00:15]} 16. Bh6 {[%emt 0:00:40]} Re8 {[%emt 0:00:38]} 17. Qd2 {[%emt 0:00:27]} Bg7 {[%emt 0:10:02]} 18. Bxg7 {[%emt 0:00:57]} Kxg7 {[%emt 0:00:12]} 19. Ng5 {[%emt 0:00:36]} Rf8 {[%emt 0:01:07]} 20. d5 {[%emt 0:00:41]} Nce5 {[%emt 0:01:41]} 21. Qd4 {[%emt 0:02:46]} Qxg5 {[%emt 0:01:55]} 22. Kh2 {[%emt 0:02:19]} Qf6 {[%emt 0:02:54]} 23. Qd2 {[%emt 0:00:33]} Nc5 {[%emt 0:02:34]} 24. Bc2 {[%emt 0:00:26]} Nc4 {[%emt 0:01:27]} 25. Qe2 {[%emt 0:01:01]} Ne5 {[%emt 0:07:19]} 26. b3 {[%emt 0:00:33]} Ba6 {[%emt 0:01:00]} 27. Qd2 {[%emt 0:01:34]} Ned3 {[%emt 0:05:24]} 28. Bxd3 {[%emt 0:00:41]} Nxd3 {[%emt 0:00:45]} 29. Re3 {[%emt 0:00:11]} Qxa1 {[%emt 0:03:03]} 30. Rxd3 {[%emt 0:00:44]} Bxd3 {[%emt 0:00:11]} 31. Qg5 {[%emt 0:00:13]} Qe5 {[%emt 0:01:33]} 32. Qg4 {[%emt 0:00:46]} h5 {[%emt 0:02:49]} 33. Qf3 {[%emt 0:00:40]} Bxe4 {[%emt 0:00:50]} 34. Qd1 {[%emt 0:00:24]} h4 {[%emt 0:01:01]} 35. Qg4 {[%emt 0:00:13]} hxg3+ {[%emt 0:00:22]} 36. fxg3 {[%emt 0:00:11]} f5 {[%emt 0:00:16]} 37. Qd1 {[%emt 0:00:30]} f4 {[%emt 0:00:28]} 38. Qc1 {[%emt 0:00:23]} fxg3+ {[%emt 0:00:09]} 39. Kh1 {[%emt 0:00:24]} Bxg2+ {[%emt 0:00:18]} 40. Kxg2 {[%emt 0:00:00]} Rf2+ {[%emt 0:00:00]} 41. Kg1 {[%emt 0:00:18]} Re8 {[%emt 0:00:35]} 42. Qxc7+ {[%emt 0:00:27]} Re7 {[%emt 0:00:06]} 43. Qc3 {[%emt 0:01:26]} Qxc3 {[%emt 0:00:16]} 0-1

[Event "EYCC Open-U10 2019"]
[Site "Bratislava"]
[Date "2019.08.07"]
[Round "6.26"]
[White "Bazilius, Augustinas"]
[Black "Hasanli, Ziya"]
[Result "1-0"]
[ECO "D38"]
[WhiteElo "1666"]
[BlackElo "1315"]
[Annotator "NA"]
[PlyCount "63"]
[EventDate "2019.08.02"]
[EventType "swiss"]
[EventCountry "SVK"]
[SourceTitle "playchess.com"]
[Source "ChessBase"]
[SourceQuality "1"]
[TimeControl "40/5400+30:1800+30"]

1. d4 {[%emt 0:00:00]} Nf6 {[%emt 0:00:00]} 2. c4 {[%emt 0:00:27]} e6 {[%emt 0:00:00]} 3. Nf3 {[%emt 0:00:18]} d5 {[%emt 0:00:50]} 4. Nc3 {[%emt 0:01:28]} Bb4 {[%emt 0:00:32]} 5. Bg5 {[%emt 0:00:49]} O-O {[%emt 0:06:39]} 6. e3 {[%emt 0:07:03]} b6 {[%emt 0:11:37]} 7. Bd3 {[%emt 0:04:52]} Bb7 {[%emt 0:03:47]} 8. a3 {[%emt 0:02:10]} Bxc3+ {[%emt 0:02:32]} 9. bxc3 {[%emt 0:00:07]} c5 {[%emt 0:06:06]} 10. O-O {[%emt 0:01:14]} Nbd7 {[%emt 0:03:40]} 11. Qe2 {[%emt 0:06:19]} h6 {[%emt 0:05:04]} 12. Bh4 {[%emt 0:02:19]} Rc8 {[%emt 0:02:49]} 13. cxd5 {[%emt 0:07:35]} exd5 {[%emt 0:01:06]} 14. Bb5 {[%emt 0:09:41]} Qc7 {[%emt 0:09:28]} 15. Bg3 {[%emt 0:02:14]} Qd8 {[%emt 0:01:05]} 16. Ba6 {[%emt 0:00:02]} Bxa6 {[%emt 0:00:51]} 17. Qxa6 {[%emt 0:00:12]} Ne4 {[%emt 0:02:05]} 18. Rac1 {[%emt 0:07:40]} Nxg3 {[%emt 0:05:50]} 19. hxg3 {[%emt 0:00:42]} Qc7 {[%emt 0:01:51]} 20. Qd3 {[%emt 0:11:33]} cxd4 {[%emt 0:09:04]} 21. cxd4 {[%emt 0:05:40]} Qxc1 {[%emt 0:04:46]} 22. Rxc1 {[%emt 0:00:07]} Rxc1+ {[%emt 0:00:03]} 23. Kh2 {[%emt 0:00:12]} Nf6 {[%emt 0:00:13]} 24. Ne5 {[%emt 0:01:50]} Ne4 {[%emt 0:01:05]} 25. Qe2 {[%emt 0:08:39]} Rfc8 {[%emt 0:01:22]} 26. Qf3 {[%emt 0:01:54]} f6 {[%emt 0:00:38]} 27. Nd3 {[%emt 0:01:13]} R1c3 {[%emt 0:04:51]} 28. Qf5 {[%emt 0:02:33]} Rd8 {[%emt 0:00:52]} 29. Nb4 {[%emt 0:01:40]} Rxa3 {[%emt 0:06:29]} 30. Nxd5 {[%emt 0:01:44]} Re8 {[%emt 0:02:10]} 31. Qd7 {[%emt 0:01:32]} Kf8 {[%emt 0:00:15]} 32. f3 {[%emt 0:00:30]} 1-0

[Event "EYCC Open-U10 2019"]
[Site "Bratislava"]
[Date "2019.08.07"]
[Round "6.27"]
[White "Derbenev, Arseniy"]
[Black "Wielgus, Wojciech"]
[Result "0-1"]
[ECO "D01"]
[WhiteElo "1219"]
[BlackElo "1655"]
[Annotator "NA"]
[PlyCount "109"]
[EventDate "2019.08.02"]
[EventType "swiss"]
[EventCountry "SVK"]
[SourceTitle "playchess.com"]
[Source "ChessBase"]
[SourceQuality "1"]
[TimeControl "40/5400+30:1800+30"]

1. d4 {[%emt 0:00:00]} Nf6 {[%emt 0:02:11]} 2. Nc3 {[%emt 0:00:00]} d5 {[%emt 0:02:30]} 3. Bg5 {[%emt 0:00:05]} c5 {[%emt 0:05:21]} 4. Bxf6 {[%emt 0:03:27]} gxf6 {[%emt 0:11:54]} 5. e3 {[%emt 0:01:05]} Nc6 {[%emt 0:12:11]} 6. Nf3 {[%emt 0:00:19]} Bg4 {[%emt 0:00:57]} 7. Be2 {[%emt 0:01:53]} e6 {[%emt 0:17:43]} 8. b3 {[%emt 0:10:11]} Bxf3 {[%emt 0:15:07]} 9. Bxf3 {[%emt 0:01:19]} Qa5 {[%emt 0:10:10]} 10. Qd3 {[%emt 0:04:56]} cxd4 {[%emt 0:06:12]} 11. exd4 {[%emt 0:00:25]} Bb4 {[%emt 0:00:43]} 12. Kd2 {[%emt 0:00:42]} Nxd4 {[%emt 0:05:11]} 13. a3 {[%emt 0:14:06]} Nxf3+ {[%emt 0:03:21]} 14. gxf3 {[%emt 0:01:30]} Bxc3+ {[%emt 0:02:12]} 15. Qxc3 {[%emt 0:00:21]} Qxc3+ {[%emt 0:00:10]} 16. Kxc3 {[%emt 0:00:11]} Ke7 {[%emt 0:00:30]} 17. Rhg1 {[%emt 0:00:50]} Rac8+ {[%emt 0:00:04]} 18. Kd2 {[%emt 0:00:41]} Rc7 {[%emt 0:00:37]} 19. Rg7 {[%emt 0:01:27]} f5 {[%emt 0:00:54]} 20. Rag1 {[%emt 0:01:34]} Rcc8 {[%emt 0:01:25]} 21. R1g3 {[%emt 0:01:11]} Kf6 {[%emt 0:00:24]} 22. R7g5 {[%emt 0:01:06]} h5 {[%emt 0:00:39]} 23. f4 {[%emt 0:01:47]} h4 {[%emt 0:00:30]} 24. Rg1 {[%emt 0:02:17]} b5 {[%emt 0:00:28]} 25. R5g2 {[%emt 0:03:49]} a5 {[%emt 0:00:32]} 26. Rb1 {[%emt 0:00:49]} h3 {[%emt 0:00:29]} 27. Rg3 {[%emt 0:00:20]} Rh4 {[%emt 0:00:26]} 28. Rf3 {[%emt 0:02:51]} Rg8 {[%emt 0:00:35]} 29. Rg3 {[%emt 0:01:17]} Rxg3 {[%emt 0:00:30]} 30. fxg3 {[%emt 0:00:16]} Rh8 {[%emt 0:00:11]} 31. Re1 {[%emt 0:01:18]} Ke7 {[%emt 0:00:28]} 32. Re3 {[%emt 0:01:51]} Rc8 {[%emt 0:00:24]} 33. Re1 {[%emt 0:01:54]} Kd6 {[%emt 0:00:13]} 34. Re3 {[%emt 0:00:49]} f6 {[%emt 0:00:56]} 35. Rd3 {[%emt 0:04:02]} e5 {[%emt 0:00:47]} 36. fxe5+ {[%emt 0:01:33]} fxe5 {[%emt 0:00:11]} 37. Rf3 {[%emt 0:00:55]} Ke6 {[%emt 0:00:32]} 38. c3 {[%emt 0:02:46]} Rg8 {[%emt 0:00:47]} 39. Ke2 {[%emt 0:03:13]} Rg4 {[%emt 0:00:29]} 40. Kd2 {[%emt 0:00:00]} Rg8 {[%emt 0:00:00]} 41. Ke3 {[%emt 0:07:02]} Rg4 {[%emt 0:11:14]} 42. Kd2 {[%emt 0:00:58]} a4 {[%emt 0:04:37]} 43. b4 {[%emt 0:01:00]} Rc4 {[%emt 0:02:08]} 44. Rd3 {[%emt 0:01:38]} d4 {[%emt 0:01:03]} 45. Kc2 {[%emt 0:07:17]} Rxc3+ {[%emt 0:00:57]} 46. Rxc3 {[%emt 0:00:24]} dxc3 {[%emt 0:00:01]} 47. Kxc3 {[%emt 0:00:11]} Kd5 {[%emt 0:00:34]} 48. Kd3 {[%emt 0:01:22]} e4+ {[%emt 0:00:28]} 49. Kc3 {[%emt 0:00:41]} Ke5 {[%emt 0:00:08]} 50. Kd2 {[%emt 0:00:19]} Kd4 {[%emt 0:00:05]} 51. Ke2 {[%emt 0:01:12]} e3 {[%emt 0:02:19]} 52. Ke1 {[%emt 0:00:44]} Kd3 {[%emt 0:01:15]} 53. Kd1 {[%emt 0:00:22]} e2+ {[%emt 0:00:37]} 54. Ke1 {[%emt 0:00:11]} Ke3 {[%emt 0:00:07]} 55. g4 {[%emt 0:00:30]} 0-1